bitfinex/quotes_BTCUSD_20250922
["timestamp","ask_amount","ask_price","bid_price","bid_amount"]
[1758505463877,0.53816531,114850.0,114840.0,0.32214691]
[1758505464077,0.54016531,114850.0,114840.0,0.31905691]
[1758505465128,0.54016531,114850.0,114840.0,0.32209691]
[1758505468254,0.53816531,114850.0,114840.0,0.32209691]
[1758505470089,0.54016531,114850.0,114840.0,0.32209691]
[1758505470495,0.53816531,114850.0,114840.0,0.32209691]
[1758505470687,0.54016531,114850.0,114840.0,0.31905691]
[1758505471153,0.27768,114850.0,114840.0,0.31905691]
[1758505471304,0.54016531,114850.0,114840.0,0.31905691]
[1758505471503,0.54016531,114850.0,114840.0,0.32217691]
[1758505475704,0.54016531,114850.0,114840.0,0.17715534]
[1758505476018,0.72921549,114850.0,114840.0,0.17715534]
[1758505476154,0.73216549,114850.0,114840.0,0.17715534]
[1758505476554,0.71430549,114850.0,114840.0,0.17715534]
[1758505477046,0.73216549,114850.0,114840.0,0.17715534]
[1758505477191,0.73216549,114850.0,114840.0,0.003]
[1758505477192,1.03216549,114850.0,114840.0,0.003]
[1758505481287,1.12632549,114850.0,114840.0,0.003]
[1758505483195,0.85064549,114850.0,114840.0,0.003]
[1758505483397,1.12620549,114850.0,114840.0,0.003]
[1758505485284,0.85064549,114850.0,114840.0,0.003]
[1758505485506,1.12620549,114850.0,114840.0,0.003]
[1758505486514,1.12616549,114850.0,114840.0,0.003]
[1758505488594,1.11125549,114850.0,114840.0,0.003]
[1758505488799,1.12616549,114850.0,114840.0,0.003]
[1758505489044,1.15848286,114850.0,114840.0,0.003]
[1758505489252,0.87683542,114850.0,114840.0,0.003]
[1758505489427,1.15235542,114850.0,114840.0,0.003]
[1758505490017,0.17416437,114840.0,114820.0,0.48019003]
[1758505490219,0.43664968,114840.0,114830.0,0.02634]
[1758505490453,0.71426968,114840.0,114830.0,0.02634]
[1758505491519,0.71426968,114840.0,114830.0,0.20051051]
[1758505492083,0.71426968,114840.0,114830.0,0.20251051]
[1758505493015,0.71426968,114840.0,114830.0,0.20351051]
[1758505493564,0.71422968,114840.0,114830.0,0.20663051]
[1758505494210,0.71422968,114840.0,114830.0,0.17928051]
[1758505494629,0.71422968,114840.0,114830.0,0.00511]
[1758505494839,0.45174437,114840.0,114830.0,0.00511]
[1758505495107,0.71422968,114840.0,114830.0,0.02934]
[1758505496157,0.71422968,114840.0,114830.0,0.20351051]
[1758505496897,0.43874968,114840.0,114830.0,0.20351051]
[1758505497092,0.71422968,114840.0,114830.0,0.20351051]
[1758505498322,0.71422968,114840.0,114830.0,0.20664051]
[1758505498573,0.97973243,114840.0,114830.0,0.003]
[1758505498810,0.99464243,114840.0,114830.0,0.003]
[1758505500124,0.99167243,114840.0,114830.0,0.003]
[1758505500235,0.70128243,114840.0,114830.0,0.003]
[1758505500466,0.97676243,114840.0,114830.0,0.17717051]
[1758505501115,0.45174437,114840.0,114830.0,0.17923051]
[1758505501321,0.97676243,114840.0,114830.0,0.20422051]
[1758505502248,0.7012734,114840.0,114830.0,0.20422051]
[1758505502453,0.53798903,114840.0,114830.0,0.20735051]
[1758505502721,0.26250903,114840.0,114830.0,0.20735051]
[1758505502941,0.85699914,114850.0,114840.0,0.17415534]
[1758505503106,0.02618993,114850.0,114840.0,0.17621534]
[1758505503273,0.53794903,114850.0,114840.0,0.20433534]
[1758505503478,0.82030885,114860.0,114850.0,0.17414018]
[1758505503673,1.09574885,114860.0,114850.0,0.20432018]
[1758505503916,0.75574885,114860.0,114850.0,0.20432018]
[1758505504338,0.58162309,114860.0,114850.0,0.20432018]
[1758505504550,0.72956159,114860.0,114850.0,0.20432018]
[1758505504769,0.00878129,114860.0,114850.0,0.20432018]
[1758505504956,0.28422129,114860.0,114850.0,0.20432018]
[1758505505266,0.53794903,114860.0,114850.0,0.20332018]
[1758505505726,0.71207405,114860.0,114850.0,0.20332018]
[1758505506114,0.71307405,114860.0,114850.0,0.20332018]
[1758505506460,0.71707405,114860.0,114850.0,0.20332018]
[1758505506666,0.71307405,114860.0,114850.0,0.20332018]
[1758505506874,0.7209348,114860.0,114850.0,0.20332018]
[1758505507275,0.7209348,114860.0,114850.0,0.20432018]
[1758505508005,0.7209348,114860.0,114850.0,0.20732018]
[1758505508209,0.7229048,114860.0,114850.0,0.20732018]
[1758505508422,0.45842577,114860.0,114850.0,0.20732018]
[1758505508571,0.7209348,114860.0,114850.0,0.20732018]
[1758505508788,0.54680978,114860.0,114850.0,0.20732018]
[1758505510264,0.28430075,114860.0,114850.0,0.20732018]
[1758505510479,0.54680978,114860.0,114850.0,0.20732018]
[1758505512518,0.7209348,114860.0,114850.0,0.20732018]
[1758505512706,0.28430075,114860.0,114850.0,0.20732018]
[1758505512921,0.54680978,114860.0,114850.0,0.20732018]
[1758505513166,0.54878978,114860.0,114850.0,0.20732018]
[1758505513382,0.54878978,114860.0,114850.0,0.20419018]
[1758505513522,0.54878978,114860.0,114850.0,0.20729018]
[1758505513953,0.28430075,114860.0,114850.0,0.20729018]
[1758505514163,0.27136978,114860.0,114850.0,0.20729018]
[1758505514387,0.54672978,114860.0,114850.0,0.20729018]
[1758505514595,0.28422075,114860.0,114850.0,0.20729018]
[1758505514815,0.54672978,114860.0,114850.0,0.20729018]
[1758505515687,0.28422075,114860.0,114850.0,0.20729018]
[1758505516033,0.54672978,114860.0,114850.0,0.20729018]
[1758505517178,0.28418075,114860.0,114850.0,0.20541018]
[1758505518378,0.54668978,114860.0,114850.0,0.20541018]
[1758505519278,0.28418075,114860.0,114850.0,0.20541018]
[1758505519539,0.38285404,114870.0,114860.0,0.17412502]
[1758505519762,0.63198903,114870.0,114860.0,0.17619502]
[1758505520009,0.63198903,114870.0,114860.0,0.20240502]
[1758505520416,0.65817133,114870.0,114860.0,0.20240502]
[1758505520768,0.65817133,114870.0,114860.0,0.20245199]
[1758505521284,0.65917133,114870.0,114860.0,0.20245199]
[1758505521510,0.66792689,114870.0,114860.0,0.20245199]
[1758505521909,0.57376689,114870.0,114860.0,0.20245199]
[1758505522491,0.57474689,114870.0,114860.0,0.20245199]
[1758505524082,0.57474689,114870.0,114860.0,0.20545199]
[1758505524637,0.57474689,114870.0,114860.0,0.20645199]
[1758505526026,0.57474689,114870.0,114860.0,0.20335199]
[1758505526645,0.57474689,114870.0,114860.0,0.18024199]
[1758505526974,0.57474689,114870.0,114860.0,0.17817199]
[1758505527387,0.74885675,114870.0,114860.0,0.17817199]
[1758505527592,0.76669675,114870.0,114860.0,0.17817199]
[1758505527804,1.06669675,114870.0,114860.0,0.17817199]
[1758505530109,1.05178675,114870.0,114860.0,0.00404697]
[1758505530314,1.32920578,114870.0,114860.0,0.00404697]
[1758505531115,1.32920578,114870.0,114860.0,0.00304697]
[1758505531353,1.32920578,114870.0,114860.0,4.697e-05]
[1758505531987,0.89541772,114870.0,114860.0,4.697e-05]
[1758505532133,1.16092675,114870.0,114860.0,4.697e-05]
[1758505532318,1.16385675,114870.0,114860.0,4.697e-05]
[1758505532703,1.16377675,114870.0,114860.0,4.697e-05]
[1758505534237,0.88853675,114870.0,114860.0,4.697e-05]
[1758505534438,1.16377675,114870.0,114860.0,4.697e-05]
[1758505536084,1.16377675,114870.0,114860.0,0.17417199]
[1758505536467,1.16377675,114870.0,114860.0,4.697e-05]
[1758505539332,0.88560675,114870.0,114860.0,0.17417199]
[1758505539541,0.69658689,114870.0,114860.0,0.20402199]
[1758505539816,0.97178689,114870.0,114860.0,0.20402199]
[1758505540517,0.69460689,114870.0,114860.0,0.20402199]
[1758505540750,0.03793786,114870.0,114860.0,0.31944356]
[1758505540969,0.31313786,114870.0,114860.0,0.31944356]
[1758505541403,0.57781689,114870.0,114860.0,0.29468356]
[1758505541606,0.57481689,114870.0,114860.0,0.29170356]
[1758505541761,0.57481689,114870.0,114860.0,0.32044356]
[1758505543046,0.31230786,114870.0,114860.0,0.32044356]
[1758505543249,0.57481689,114870.0,114860.0,0.32044356]
[1758505544447,0.57264689,114870.0,114860.0,0.32044356]
[1758505544623,0.03493786,114870.0,114860.0,0.32044356]
[1758505544831,0.0261823,114870.0,114860.0,0.32044356]
[1758505545646,0.03475351,114870.0,114860.0,0.32044356]
[1758505547880,0.3,114900.0,114890.0,0.17407955]
[1758505548283,0.28401773,114900.0,114890.0,0.20392955]
[1758505548521,0.57270248,114900.0,114890.0,0.20392955]
[1758505550318,0.31019345,114900.0,114890.0,0.20392955]
[1758505550634,0.57270248,114900.0,114890.0,0.20392955]
[1758505550790,0.57270248,114900.0,114890.0,0.20492955]
[1758505551980,0.03503345,114900.0,114890.0,0.20492955]
[1758505552186,0.57266248,114900.0,114890.0,0.20492955]
[1758505553795,0.31015345,114900.0,114890.0,0.20492955]
[1758505553990,0.57266248,114900.0,114890.0,0.20492955]
[1758505555363,0.03503345,114900.0,114890.0,0.20492955]
[1758505555570,0.57262248,114900.0,114890.0,0.20492955]
[1758505556841,0.57262248,114900.0,114890.0,0.27029426]
[1758505557603,0.29754248,114900.0,114890.0,0.27029426]
[1758505557758,0.57262248,114900.0,114890.0,0.27029426]
[1758505557947,0.31011345,114900.0,114890.0,0.27029426]
[1758505558151,0.57262248,114900.0,114890.0,0.27029426]
[1758505558508,0.31011345,114900.0,114890.0,0.27029426]
[1758505558771,0.57440554,114900.0,114890.0,0.26731426]
[1758505558989,0.57440554,114900.0,114890.0,0.24255426]
[1758505559465,0.57436554,114900.0,114890.0,0.24255426]
[1758505559663,0.57436554,114900.0,114890.0,0.26516426]
[1758505561593,0.31218345,114900.0,114890.0,0.26516426]
[1758505561773,0.57436554,114900.0,114890.0,0.26516426]
[1758505562299,0.57436554,114900.0,114890.0,0.24044426]
[1758505562513,0.59222554,114900.0,114890.0,0.24044426]
[1758505562772,1.32847203,114900.0,114890.0,0.06636471]
[1758505562911,1.32847203,114900.0,114890.0,0.001]
[1758505563679,1.32847203,114900.0,114890.0,0.17407955]
[1758505564510,1.32847203,114900.0,114880.0,0.17409008]
[1758505564713,0.45412164,114890.0,114870.0,0.75324024]
[1758505564918,0.26429209,114880.0,114870.0,0.86758181]
[1758505565342,0.26429209,114880.0,114870.0,0.87072181]
[1758505565743,0.71633679,114880.0,114870.0,0.2697]
[1758505565888,1.03124679,114880.0,114870.0,0.2697]
[1758505566108,1.05742691,114880.0,114870.0,0.2697]
[1758505566958,1.05742691,114880.0,114870.0,0.2727]
[1758505567376,1.05742691,114880.0,114870.0,0.2747]
[1758505567772,1.05742691,114880.0,114870.0,0.44880986]
[1758505567773,0.78242691,114880.0,114870.0,0.44880986]
[1758505567984,0.88333221,114880.0,114870.0,0.44880986]
[1758505568593,1.05742691,114880.0,114870.0,0.44880986]
[1758505569016,1.05447691,114880.0,114870.0,0.44880986]
[1758505569221,0.86547221,114880.0,114870.0,0.44880986]
[1758505569530,1.03956691,114880.0,114870.0,0.44880986]
[1758505569685,0.76456691,114880.0,114870.0,0.44880986]
[1758505569900,1.03956691,114880.0,114870.0,0.47538986]
[1758505570110,1.03956691,114880.0,114870.0,0.20568986]
[1758505570525,1.03956691,114880.0,114870.0,0.18118986]
[1758505571078,0.77738482,114880.0,114870.0,0.17910986]
[1758505571272,1.03956691,114880.0,114870.0,0.17910986]
[1758505571426,1.03956691,114880.0,114870.0,0.005]
[1758505571649,1.05742691,114880.0,114870.0,0.005]
[1758505573592,0.78242691,114880.0,114870.0,0.005]
[1758505573790,0.78242691,114880.0,114870.0,0.17910986]
[1758505574050,1.05742691,114880.0,114870.0,0.005]
[1758505574225,1.05742691,114880.0,114870.0,0.17910986]
[1758505577116,1.05742691,114880.0,114870.0,0.005]
[1758505579966,1.319609,114880.0,114870.0,0.005]
[1758505580224,1.659609,114880.0,114870.0,0.005]
[1758505580426,1.659609,114880.0,114870.0,0.002]
[1758505580599,0.17410986,114870.0,114860.0,4.697e-05]
[1758505580770,0.69847404,114870.0,114860.0,4.697e-05]
[1758505581142,0.71843404,114870.0,114860.0,4.697e-05]
[1758505581571,0.99042404,114870.0,114860.0,4.697e-05]
[1758505581998,0.71333195,114870.0,114860.0,4.697e-05]
[1758505582601,0.71333195,114870.0,114860.0,0.00104697]
[1758505584698,0.53922209,114870.0,114860.0,0.17725199]
[1758505584902,0.84324482,114880.0,114860.0,0.21572499]
[1758505585115,0.32618012,114880.0,114870.0,0.28953143]
[1758505585316,0.28381773,114900.0,114890.0,0.17407955]
[1758505585516,0.03503418,114900.0,114890.0,0.20382955]
[1758505585724,0.57217627,114900.0,114890.0,0.20382955]
[1758505585837,0.54599982,114900.0,114890.0,0.20382955]
[1758505586256,0.54599982,114900.0,114890.0,0.20082955]
[1758505586476,0.54599982,114900.0,114890.0,0.17632955]
[1758505586683,0.54599982,114900.0,114890.0,0.20082955]
[1758505586881,0.54599982,114900.0,114890.0,0.20182955]
[1758505588106,0.54795982,114900.0,114890.0,0.20182955]
[1758505588474,0.27103982,114900.0,114890.0,0.20182955]
[1758505588868,0.54595982,114900.0,114890.0,0.20182955]
[1758505589344,0.57213556,114900.0,114890.0,0.20182955]
[1758505590120,0.29721556,114900.0,114890.0,0.20182955]
[1758505590319,0.57213556,114900.0,114890.0,0.20182955]
[1758505591947,0.57409556,114900.0,114890.0,0.20182955]
[1758505592139,0.57409556,114900.0,114890.0,0.19865955]
[1758505592942,0.75124996,114900.0,114890.0,0.001]
[1758505593154,1.02834205,114900.0,114890.0,0.001]
[1758505593347,1.02834205,114900.0,114890.0,0.17507955]
[1758505594472,1.02834205,114900.0,114890.0,0.001]
[1758505596695,0.50397787,114900.0,114890.0,0.001]
[1758505596919,1.02834205,114900.0,114890.0,0.001]
[1758505598895,1.02834205,114900.0,114890.0,0.17507955]
[1758505599461,1.02834205,114900.0,114890.0,0.001]
[1758505600811,0.75342205,114900.0,114890.0,0.001]
[1758505601010,1.02826205,114900.0,114890.0,0.001]
[1758505605308,1.02826205,114900.0,114890.0,0.17507955]
[1758505605680,0.75342205,114900.0,114890.0,0.17507955]
[1758505605903,0.57205556,114900.0,114890.0,0.20341955]
[1758505606721,0.03503347,114900.0,114890.0,0.20341955]
[1758505606890,0.74607996,114900.0,114890.0,0.20341955]
[1758505607439,0.47127996,114900.0,114890.0,0.20341955]
[1758505607656,0.74607996,114900.0,114890.0,0.20341955]
[1758505607852,0.29721556,114900.0,114890.0,0.20341955]
[1758505608036,0.57201556,114900.0,114890.0,0.20341955]
[1758505608504,0.74607996,114900.0,114890.0,0.20341955]
[1758505608724,0.03503347,114900.0,114890.0,0.20341955]
[1758505608927,0.30983347,114900.0,114890.0,0.20341955]
[1758505609349,0.57201556,114900.0,114890.0,0.20341955]
[1758505611304,0.03503347,114900.0,114890.0,0.20341955]
[1758505611514,0.30983347,114900.0,114890.0,0.20341955]
[1758505611969,0.57201556,114900.0,114890.0,0.20341955]
[1758505612391,0.74803996,114900.0,114890.0,0.001]
[1758505612594,1.02822205,114900.0,114890.0,0.17507955]
[1758505612811,0.76294996,114900.0,114890.0,0.17507955]
[1758505613028,0.48585787,114900.0,114890.0,0.18031955]
[1758505613230,0.74803996,114900.0,114890.0,0.20024955]
[1758505613429,0.74803996,114900.0,114890.0,0.20341955]
[1758505614045,0.74607996,114900.0,114890.0,0.18031955]
[1758505614257,0.03503347,114900.0,114890.0,0.20341955]
[1758505614470,0.57197556,114900.0,114890.0,0.17507955]
[1758505614672,0.57197556,114900.0,114890.0,0.20341955]
[1758505615673,0.30979347,114900.0,114890.0,0.20341955]
[1758505615848,0.57197556,114900.0,114890.0,0.20341955]
[1758505616431,0.74799996,114900.0,114890.0,0.17714955]
[1758505616844,0.74799996,114900.0,114890.0,0.20024955]
[1758505617051,0.74799996,114900.0,114890.0,0.00307]
[1758505617248,0.74799996,114900.0,114890.0,0.001]
[1758505617479,1.31327205,114900.0,114890.0,0.001]
[1758505617678,1.32818205,114900.0,114890.0,0.001]
[1758505618595,1.32835497,114900.0,114890.0,0.001]
[1758505619600,1.32835497,114900.0,114890.0,0.17507955]
[1758505619799,1.31035497,114900.0,114890.0,0.17507955]
[1758505620000,1.32835497,114900.0,114890.0,0.001]
[1758505623009,0.17407955,114890.0,114880.0,0.17409445]
[1758505623210,0.4383281,114890.0,114880.0,0.17409445]
[1758505623589,0.4383281,114890.0,114870.0,0.59529692]
[1758505623783,0.53698855,114880.0,114870.0,0.59529692]
[1758505623983,0.53698855,114880.0,114870.0,0.45757535]
[1758505623984,0.9754918,114880.0,114870.0,0.45757535]
[1758505624184,0.9754918,114880.0,114870.0,0.45460535]
[1758505624616,0.9754918,114880.0,114870.0,0.48196535]
[1758505624771,1.00167122,114880.0,114870.0,0.48196535]
[1758505625168,0.55285652,114880.0,114870.0,0.48696535]
[1758505625385,0.82543652,114880.0,114870.0,0.48696535]
[1758505625801,0.82543652,114880.0,114870.0,0.48896535]
[1758505626213,1.00167122,114880.0,114870.0,0.46160535]
[1758505626418,0.47713412,114880.0,114870.0,0.19190535]
[1758505626598,0.82757652,114880.0,114870.0,0.21926535]
[1758505627615,1.00167122,114880.0,114870.0,0.21926535]
[1758505627856,1.00167122,114880.0,114870.0,0.21629535]
[1758505628064,1.00167122,114880.0,114870.0,0.21926535]
[1758505629796,1.00459122,114880.0,114870.0,0.007]
[1758505629998,1.31950122,114880.0,114870.0,0.007]
[1758505630202,1.41362122,114880.0,114870.0,0.007]
[1758505630498,0.88908412,114880.0,114870.0,0.007]
[1758505630697,1.41362122,114880.0,114870.0,0.007]
[1758505630919,1.41362122,114880.0,114870.0,0.002]
[1758505631257,1.41562122,114880.0,114870.0,0.002]
[1758505632027,0.17410986,114870.0,114860.0,0.19895199]
[1758505632243,0.17410986,114870.0,114860.0,0.20105199]
[1758505632244,0.43848841,114870.0,114860.0,0.20105199]
[1758505633248,0.45339841,114870.0,114860.0,0.17517199]
[1758505633445,0.43848841,114870.0,114860.0,0.17517199]
[1758505633857,0.70371696,114870.0,114860.0,0.00204697]
[1758505634075,0.71862696,114870.0,114860.0,0.00204697]
[1758505634288,0.74481085,114870.0,114860.0,0.00204697]
[1758505634914,0.74481085,114870.0,114860.0,0.00104697]
[1758505635101,0.74481085,114870.0,114860.0,4.697e-05]
[1758505635506,0.74681085,114870.0,114860.0,4.697e-05]
[1758505638120,1.08681085,114870.0,114860.0,4.697e-05]
[1758505638321,1.65220556,114870.0,114860.0,4.697e-05]
[1758505640520,1.38993701,114870.0,114860.0,4.697e-05]
[1758505642847,1.65220556,114870.0,114860.0,4.697e-05]
[1758505643792,1.37752556,114870.0,114860.0,4.697e-05]
[1758505643996,1.65224556,114870.0,114860.0,4.697e-05]
[1758505645526,1.96589782,114870.0,114860.0,4.697e-05]
[1758505645815,2.0403028,114870.0,114860.0,4.697e-05]
[1758505647795,2.04030224,114870.0,114860.0,4.697e-05]
[1758505650772,2.01796435,114870.0,114860.0,4.697e-05]
[1758505650988,2.00431209,114870.0,114860.0,4.697e-05]
[1758505653748,2.02664986,114870.0,114860.0,4.697e-05]
[1758505653948,7.86345551,114870.0,114860.0,4.697e-05]
[1758505654351,7.07664986,114870.0,114860.0,4.697e-05]
[1758505654700,7.07464986,114870.0,114860.0,4.697e-05]
[1758505656276,6.80692986,114870.0,114860.0,4.697e-05]
[1758505656445,4.88241197,114870.0,114860.0,4.697e-05]
[1758505657600,5.26469103,114870.0,114860.0,4.697e-05]
[1758505657817,5.27282888,114870.0,114860.0,4.697e-05]
[1758505661075,5.25917563,114870.0,114860.0,4.697e-05]
[1758505664112,5.06577563,114870.0,114860.0,4.697e-05]
[1758505664589,5.09592753,114870.0,114860.0,4.697e-05]
[1758505664795,0.77415534,114840.0,114830.0,0.00323]
[1758505665012,1.98273511,114840.0,114830.0,0.02817111]
[1758505665216,1.98273511,114840.0,114830.0,0.03023111]
[1758505665537,2.00893058,114840.0,114830.0,0.03023111]
[1758505665735,1.98659269,114840.0,114830.0,0.03023111]
[1758505666043,1.72432414,114840.0,114830.0,0.03023111]
[1758505666483,1.72432414,114840.0,114830.0,0.03123111]
[1758505666804,1.44960414,114840.0,114830.0,0.03123111]
[1758505667159,1.98659269,114840.0,114830.0,0.03123111]
[1758505667823,1.71187269,114840.0,114830.0,0.03123111]
[1758505668024,1.98659269,114840.0,114830.0,0.03123111]
[1758505668920,1.97032258,114840.0,114830.0,0.03123111]
[1758505670727,1.18351693,114840.0,114830.0,0.03123111]
[1758505671032,0.88471693,114840.0,114830.0,0.03123111]
[1758505671235,1.74925403,114840.0,114830.0,0.03123111]
[1758505674596,1.47333403,114840.0,114830.0,0.03123111]
[1758505674779,0.60879693,114840.0,114830.0,0.20540162]
[1758505674977,0.84702548,114840.0,114830.0,0.20540162]
[1758505675591,0.84710548,114840.0,114830.0,0.20540162]
[1758505676609,0.41064159,114840.0,114830.0,0.20540162]
[1758505676871,0.39691014,114840.0,114830.0,0.20540162]
[1758505677053,0.41060159,114840.0,114830.0,0.20540162]
[1758505677363,0.40246374,114840.0,114830.0,0.20540162]
[1758505678503,0.12650374,114840.0,114830.0,0.20540162]
[1758505678702,0.40242374,114840.0,114830.0,0.20540162]
[1758505681593,0.3768,114850.0,114840.0,0.17415534]
[1758505681724,0.65887935,114850.0,114840.0,0.20229534]
[1758505681936,0.6850673,114850.0,114840.0,0.20229534]
[1758505682840,0.6890673,114850.0,114840.0,0.20229534]
[1758505683350,0.68294806,114850.0,114840.0,0.20229534]
[1758505683582,0.03018806,114850.0,114840.0,0.20229534]
[1758505683779,0.02618806,114850.0,114840.0,0.20229534]
[1758505683941,0.30346806,114850.0,114840.0,0.20229534]
[1758505684205,0.30346806,114850.0,114840.0,0.20329534]
[1758505685494,0.30346806,114850.0,114840.0,0.20229534]
[1758505685837,0.30346806,114850.0,114840.0,0.20629534]
[1758505686080,0.30346806,114850.0,114840.0,0.20729534]
[1758505692360,0.49468066,114900.0,114870.0,0.17410986]
[1758505692574,0.27928,114890.0,114880.0,0.19820177]
[1758505692797,0.79335955,114890.0,114880.0,0.20320177]
[1758505693000,1.08401283,114890.0,114880.0,0.1982147]
[1758505693261,1.08401283,114890.0,114880.0,0.1740947]
[1758505693472,0.90993328,114890.0,114880.0,0.1740947]
[1758505693591,0.82156908,114890.0,114880.0,0.1740947]
[1758505693788,0.90993328,114890.0,114880.0,0.1740947]
[1758505694287,0.91093328,114890.0,114880.0,0.1740947]
[1758505694832,0.65148953,114890.0,114880.0,0.1740947]
[1758505695250,0.82556908,114890.0,114880.0,0.1740947]
[1758505696210,0.82556908,114890.0,114880.0,0.1761347]
[1758505696641,0.82556908,114890.0,114880.0,0.2002547]
[1758505696797,0.82556908,114890.0,114880.0,0.1982147]
[1758505697003,1.08801283,114890.0,114880.0,0.1740947]
[1758505697595,1.08801283,114890.0,114880.0,0.1761347]
[1758505697803,0.91393328,114890.0,114880.0,0.2032147]
[1758505698003,0.03017953,114890.0,114880.0,0.2032147]
[1758505698220,0.30917953,114890.0,114880.0,0.2032147]
[1758505698829,0.03017953,114890.0,114880.0,0.2032147]
[1758505699038,0.30913953,114890.0,114880.0,0.2032147]
[1758505699250,0.30513953,114890.0,114880.0,0.2032147]
[1758505699675,0.30613953,114890.0,114880.0,0.2032147]
[1758505700058,0.30613953,114890.0,114880.0,0.1790947]
[1758505700268,0.30613953,114890.0,114880.0,0.2032147]
[1758505701755,0.30605953,114890.0,114880.0,0.2032147]
[1758505702147,0.02717953,114890.0,114880.0,0.2032147]
[1758505702351,0.27988,114890.0,114880.0,0.2032147]
[1758505703971,0.2798,114890.0,114880.0,0.2032147]
[1758505705553,0.2788,114890.0,114880.0,0.2032147]
[1758505705758,0.2788,114890.0,114880.0,0.2062147]
[1758505706445,0.4691944,114900.0,114890.0,0.17407955]
[1758505706663,0.76420896,114900.0,114890.0,0.17407955]
[1758505707084,0.48544896,114900.0,114890.0,0.17407955]
[1758505707266,0.76412896,114900.0,114890.0,0.17610955]
[1758505707466,0.93819336,114900.0,114890.0,0.17407955]
[1758505707907,0.76412896,114900.0,114890.0,0.17407955]
[1758505708283,0.76412896,114900.0,114890.0,0.17610955]
[1758505708473,0.76412896,114900.0,114890.0,0.19867955]
[1758505709183,0.76512896,114900.0,114890.0,0.19867955]
[1758505709725,0.76504896,114900.0,114890.0,0.19867955]
[1758505710011,0.93911336,114900.0,114890.0,0.19867955]
[1758505710748,0.17407955,114890.0,114880.0,0.1740947]
[1758505710959,0.03411867,114890.0,114880.0,0.1740947]
[1758505711183,0.01621867,114890.0,114880.0,0.1740947]
[1758505711399,0.01621867,114890.0,114880.0,0.2017247]
[1758505711891,0.01621867,114890.0,114880.0,0.2027247]
[1758505712274,0.01621867,114890.0,114880.0,0.2016947]
[1758505713658,0.01621867,114890.0,114880.0,0.2047247]
[1758505713972,0.04239616,114890.0,114880.0,0.1996647]
[1758505714226,0.04239616,114890.0,114880.0,0.1770947]
[1758505714574,0.21647571,114890.0,114880.0,0.1770947]
[1758505715160,0.21647571,114890.0,114880.0,0.1791247]
[1758505715405,0.21647571,114890.0,114880.0,0.2016947]
[1758505716344,0.47891946,114890.0,114880.0,0.2016947]
[1758505716599,0.47891946,114890.0,114880.0,0.1791247]
[1758505716794,0.47891946,114890.0,114880.0,0.1770947]
[1758505717097,0.46469079,114890.0,114880.0,0.1770947]
[1758505717234,0.47893542,114890.0,114880.0,0.1770947]
[1758505717441,0.47893542,114890.0,114880.0,0.003]
[1758505717729,0.49683542,114890.0,114880.0,0.003]
[1758505718724,0.23439167,114890.0,114880.0,0.1770947]
[1758505718939,0.49683542,114890.0,114880.0,0.1770947]
[1758505721564,0.48192542,114890.0,114880.0,0.003]
[1758505721740,0.5228027,114890.0,114880.0,0.003]
[1758505722810,0.5228027,114890.0,114880.0,0.002]
[1758505723021,0.47410919,114880.0,114860.0,0.47811836]
[1758505723134,0.45182986,114870.0,114860.0,0.47820031]
[1758505723340,0.46607449,114870.0,114860.0,0.21053031]
[1758505723562,0.01424463,114870.0,114860.0,0.27688607]
[1758505723758,0.29192463,114870.0,114860.0,0.27688607]
[1758505724021,0.01424463,114870.0,114860.0,0.27688607]
[1758505724225,0.29192463,114870.0,114860.0,0.27688607]
[1758505724879,0.18835449,114870.0,114860.0,0.27888607]
[1758505725075,0.46599449,114870.0,114860.0,0.27888607]
[1758505725371,0.46595449,114870.0,114860.0,0.27888607]
[1758505725549,0.46591449,114870.0,114860.0,0.21253031]
[1758505726077,0.46587449,114870.0,114860.0,0.21253031]
[1758505726292,0.1802147,114870.0,114860.0,0.21253031]
[1758505726492,0.28362484,114870.0,114860.0,0.21253031]
[1758505727076,0.4577347,114870.0,114860.0,0.21253031]
[1758505727664,0.28362484,114870.0,114860.0,0.21253031]
[1758505728489,0.54606859,114870.0,114860.0,0.21253031]
[1758505729423,0.53996375,114870.0,114860.0,0.21253031]
[1758505729607,0.50029121,114880.0,114870.0,0.17410986]
[1758505729845,0.60489272,114880.0,114870.0,0.17613986]
[1758505730010,0.59673446,114880.0,114870.0,0.17613986]
[1758505730222,0.87405446,114880.0,114870.0,0.19870986]
[1758505730988,0.77182916,114880.0,114870.0,0.00506]
[1758505731112,1.04715916,114880.0,114870.0,0.02763]
[1758505731316,0.77182916,114880.0,114870.0,0.19870986]
[1758505731533,0.87597446,114880.0,114870.0,0.19870986]
[1758505731945,1.05006916,114880.0,114870.0,0.19870986]
[1758505732463,1.05006916,114880.0,114870.0,0.17613986]
[1758505732876,0.77282916,114880.0,114870.0,0.17613986]
[1758505733087,1.05002916,114880.0,114870.0,0.19870986]
[1758505733309,1.04391047,114880.0,114870.0,0.19870986]
[1758505736792,0.86981577,114880.0,114870.0,0.19870986]
[1758505737075,0.86754577,114880.0,114870.0,0.20405986]
[1758505737433,1.04363047,114880.0,114870.0,0.20081986]
[1758505737647,1.06161047,114880.0,114870.0,0.17410986]
[1758505738193,1.04363047,114880.0,114870.0,0.17410986]
[1758505741797,0.86953577,114880.0,114870.0,0.17606986]
[1758505742005,0.86722577,114880.0,114870.0,0.17930986]
[1758505742156,0.86722577,114880.0,114870.0,0.20398986]
[1758505742366,1.04132047,114880.0,114870.0,0.20398986]
[1758505742566,1.30555966,114880.0,114860.0,0.18614031]
[1758505742729,0.26234647,114870.0,114860.0,0.18290031]
[1758505742935,0.26433647,114870.0,114860.0,0.18290031]
[1758505743397,0.26433647,114870.0,114860.0,0.18486031]
[1758505743639,0.43844633,114870.0,114860.0,0.17615406]
[1758505743841,0.00199,114870.0,114860.0,0.17615406]
[1758505744057,0.26433647,114870.0,114860.0,0.17419406]
[1758505744262,0.27924647,114870.0,114860.0,0.17619406]
[1758505744632,0.26433647,114870.0,114860.0,0.17619406]
[1758505745444,0.43844633,114870.0,114860.0,0.17619406]
[1758505746576,0.7038628,114870.0,114860.0,0.00208195]
[1758505746798,0.7187728,114870.0,114860.0,0.00208195]
[1758505746974,0.74495683,114870.0,114860.0,0.00208195]
[1758505747326,0.74495683,114870.0,114860.0,8.195e-05]
[1758505747761,0.74595683,114870.0,114860.0,8.195e-05]
[1758505747971,0.74695683,114870.0,114860.0,8.195e-05]
[1758505750502,1.08695683,114870.0,114860.0,8.195e-05]
[1758505750907,1.36331683,114870.0,114860.0,8.195e-05]
[1758505751333,1.36339683,114870.0,114860.0,8.195e-05]
[1758505751965,1.08695683,114870.0,114860.0,8.195e-05]
[1758505752144,1.36335683,114870.0,114860.0,8.195e-05]
[1758505755795,1.36319683,114870.0,114860.0,8.195e-05]
[1758505756252,1.38916411,114870.0,114860.0,8.195e-05]
[1758505756445,1.08695683,114870.0,114860.0,8.195e-05]
[1758505756608,1.36315683,114870.0,114860.0,8.195e-05]
[1758505759683,1.36927013,114870.0,114860.0,8.195e-05]
[1758505761164,1.09307013,114870.0,114860.0,8.195e-05]
[1758505761367,1.36911013,114870.0,114860.0,8.195e-05]